fUSD/lending_fUSD_20260607
["ID","MTS","AMOUNT","RATE_DAILY","PERIOD"]
[424403831,1780838659000,158.0,0.000301,120]
[424403833,1780838662000,158.0,0.000301,120]
[424403832,1780838662000,158.0,0.000301,120]
[424403834,1780838673000,158.0,0.000301,120]
[424403843,1780838851000,-10000.0,0.000107,2]
[424403844,1780838887000,728.64,0.00026986,120]
[424403845,1780838908000,150.0,0.00011708,120]
[424403846,1780838927000,1000.0,0.00030136,120]
[424403847,1780838941000,2000.0,0.00030136,120]
[424403869,1780839031000,-242.9939387,0.0001177,2]
[424403867,1780839031000,-7.0060613,0.0001177,2]
[424403866,1780839031000,-150.0,0.00011708,2]
[424403865,1780839031000,-150.0,0.00011235,2]
[424403864,1780839031000,-1329.27227018,0.000107,2]
[424403876,1780839032000,-450.0,0.00011986,2]
[424403874,1780839032000,-166.80622059,0.00011986,2]
[424403872,1780839032000,-26.48670455,0.00011915,2]
[424403886,1780839032000,-852.07055935,0.00011986,2]
[424403871,1780839032000,-972.8454993,0.00011915,2]
[424403873,1780839032000,-150.0,0.00011943,2]
[424403879,1780839032000,-1383.19377941,0.00011986,2]
[424403870,1780839032000,-1000.66779615,0.00011915,2]
[424403884,1780839032000,-16.45776065,0.00011986,2]
[424403880,1780839032000,-1983.54223935,0.00011986,2]
[424403905,1780839032000,-1000.0,0.00012418,2]
[424403902,1780839032000,-842.53614783,0.0001228,2]
[424403890,1780839032000,-296.23385217,0.00011986,2]
[424403897,1780839032000,-158.0,0.0001199,2]
[424403903,1780839032000,-1705.77,0.0001228,2]
[424403901,1780839032000,-632.20385217,0.0001228,2]
[424403899,1780839032000,-174.82,0.00012033,2]
[424403895,1780839032000,-696.77614783,0.00011986,2]
[424403904,1780839032000,-187.68,0.00012367,2]
[424403907,1780839032000,-10092.87717288,0.00012419,2]
[424403906,1780839032000,-150.0,0.00012418,2]
[424403888,1780839032000,-396.80944065,0.00011986,2]
[424403944,1780839037000,-161.49819448,0.00012518,2]
[424403936,1780839037000,-232.307,0.00012518,2]
[424403939,1780839037000,-500.0,0.00012518,2]
[424403938,1780839037000,-250.0,0.00012518,2]
[424403943,1780839037000,-283.4992262,0.00012518,2]
[424403935,1780839037000,-1000.0,0.00012518,2]
[424403932,1780839037000,-1530.0420878,0.00012419,2]
[424403933,1780839037000,-22662.36498968,0.00012419,2]
[424403934,1780839037000,-7819.72072388,0.00012419,2]
[424403945,1780839037000,-500.0,0.00012518,2]
[424403942,1780839037000,-500.0,0.00012518,2]
[424403937,1780839037000,-3393.673,0.00012518,2]
[424403940,1780839037000,-500.0,0.00012518,2]
[424403953,1780839037000,-500.0,0.00012518,2]
[424403951,1780839037000,-500.0,0.00012518,2]
[424403948,1780839037000,-500.0,0.00012518,2]
[424403949,1780839037000,-500.0,0.00012518,2]
[424403952,1780839037000,-500.0,0.00012518,2]
[424403954,1780839037000,-500.0,0.00012518,2]
[424403946,1780839037000,-444.98631173,0.00012518,2]
[424403947,1780839037000,-500.0,0.00012518,2]
[424403941,1780839037000,-500.0,0.00012518,2]
[424403950,1780839037000,-500.0,0.00012518,2]
[424403994,1780839038000,-1474.98887884,0.00012686,2]
[424403995,1780839038000,-169.1846961,0.00012686,2]
[424403992,1780839038000,-1746.34780938,0.00012686,2]
[424403988,1780839038000,-177.22,0.00012522,2]
[424403990,1780839038000,-176.45,0.00012522,2]
[424403999,1780839038000,-4368.7972,0.00012686,2]
[424403998,1780839038000,-3148.8167,0.00012686,2]
[424404000,1780839038000,-2500.0,0.00012686,2]
[424403991,1780839038000,-351.90610078,0.00012667,2]
[424403987,1780839038000,-879.26,0.00012522,2]
[424404012,1780839038000,-500.0,0.00012785,2]
[424403986,1780839038000,-339.04,0.00012522,2]
[424404001,1780839038000,-500.0,0.00012686,2]
[424404007,1780839038000,-361.0,0.00012767,2]
[424404008,1780839038000,-7819.72072386,0.00012773,2]
[424404005,1780839038000,-237256.24056528,0.0001276,2]
[424404004,1780839038000,-2043.10526872,0.0001275,2]
[424404003,1780839038000,-1300.0,0.000127,4]
[424403985,1780839038000,-160.73,0.00012522,2]
[424404011,1780839038000,-1500.0,0.00012785,2]
[424404009,1780839038000,-151.0,0.00012783,2]
[424404010,1780839038000,-151.0,0.00012783,2]
[424404006,1780839038000,-5449.0,0.00012767,2]
[424404013,1780839038000,-500.0,0.00012785,2]
[424404015,1780839038000,-500.0,0.00012785,2]
[424404023,1780839038000,-1000.0,0.00012885,2]
[424404018,1780839038000,-2000.0,0.00012786,2]
[424404002,1780839038000,-34285.28425035,0.00012695,2]
[424403978,1780839038000,-500.0,0.00012518,2]
[424403982,1780839038000,-857157.8722095,0.00012519,2]
[424403981,1780839038000,-93265.7413726,0.00012519,2]
[424403956,1780839038000,-500.0,0.00012518,2]
[424403955,1780839038000,-500.0,0.00012518,2]
[424403958,1780839038000,-500.0,0.00012518,2]
[424403957,1780839038000,-500.0,0.00012518,2]
[424403959,1780839038000,-372.88007027,0.00012518,2]
[424403960,1780839038000,-500.0,0.00012518,2]
[424403961,1780839038000,-500.0,0.00012518,2]
[424403963,1780839038000,-500.0,0.00012518,2]
[424403971,1780839038000,-500.0,0.00012518,2]
[424403964,1780839038000,-500.0,0.00012518,2]
[424403962,1780839038000,-500.0,0.00012518,2]
[424403970,1780839038000,-500.0,0.00012518,2]
[424403967,1780839038000,-253.69476046,0.00012518,2]
[424403965,1780839038000,-500.0,0.00012518,2]
[424403968,1780839038000,-500.0,0.00012518,2]
[424403966,1780839038000,-500.0,0.00012518,2]
[424403969,1780839038000,-500.0,0.00012518,2]
[424403973,1780839038000,-303.40518385,0.00012518,2]
[424403972,1780839038000,-500.0,0.00012518,2]
[424403980,1780839038000,-287.6821171,0.00012519,2]
[424403977,1780839038000,-500.0,0.00012518,2]
[424403975,1780839038000,-289.18585838,0.00012518,2]
[424403976,1780839038000,-500.0,0.00012518,2]
[424404017,1780839038000,-1143536.8598,0.00012786,2]
[424403974,1780839038000,-500.0,0.00012518,2]
[424403983,1780839038000,-11952.5213036,0.00012519,2]
[424403979,1780839038000,-541.6246261,0.00012519,2]
[424403984,1780839038000,-21172.169338,0.00012519,2]
[424404014,1780839038000,-500.0,0.00012785,2]
[424403997,1780839038000,-2724.72836264,0.00012686,2]
[424404020,1780839038000,-151.0,0.00012883,2]
[424404050,1780839038000,-1746.34780933,0.00013424,2]
[424404052,1780839038000,-224.38985235,0.00013488,2]
[424404054,1780839038000,-150.0,0.00013488,2]
[424404053,1780839038000,-150.0,0.00013488,2]
[424404060,1780839038000,-203.77673036,0.00013488,2]
[424404058,1780839038000,-169.15934622,0.00013488,2]
[424404056,1780839038000,-150.0,0.00013488,2]
[424404055,1780839038000,-150.44031966,0.00013488,2]
[424404057,1780839038000,-150.0,0.00013488,2]
[424404059,1780839038000,-151.41923818,0.00013488,2]
[424404062,1780839038000,-500.0,0.00013508,2]
[424404064,1780839038000,-34285.28425035,0.00013522,2]
[424404063,1780839038000,-255.0,0.00013511,2]
[424404051,1780839038000,-150.0,0.00013488,2]
[424404065,1780839038000,-150.0,0.00013581,2]
[424404066,1780839038000,-403.55724785,0.00013666,2]
[424404068,1780839038000,-500.0,0.00013698,2]
[424404069,1780839038000,-500.0,0.00013698,2]
[424404070,1780839038000,-500.0,0.00013698,2]
[424404071,1780839038000,-500.0,0.00013698,2]
[424404073,1780839038000,-500.0,0.00013698,2]
[424404074,1780839038000,-514.47,0.00013698,2]
[424404076,1780839038000,-500.0,0.00013698,2]
[424404077,1780839038000,-500.0,0.00013698,2]
[424404075,1780839038000,-500.0,0.00013698,2]
[424404079,1780839038000,-500.0,0.00013698,2]
[424404016,1780839038000,-500.0,0.00012785,2]
[424404078,1780839038000,-500.0,0.00013698,2]
[424404067,1780839038000,-150.0,0.00013675,2]
[424404061,1780839038000,-150.0,0.00013488,2]
[424404072,1780839038000,-500.0,0.00013698,2]
[424404044,1780839038000,-34285.28425035,0.00013246,2]
[424404022,1780839038000,-151.0,0.00012883,2]
[424404049,1780839038000,-215.83393831,0.00013413,2]
[424404019,1780839038000,-2600.0,0.000128,4]
[424404024,1780839038000,-150.0,0.00012885,2]
[424404025,1780839038000,-158.0,0.000129,2]
[424404027,1780839038000,-500.0,0.0001296,2]
[424404026,1780839038000,-4000.0,0.000129,4]
[424404028,1780839038000,-500.0,0.00012969,2]
[424404029,1780839038000,-34285.28425035,0.0001297,2]
[424404033,1780839038000,-1746.34780933,0.00013055,2]
[424404035,1780839038000,-4539.3758901,0.00013092,2]
[424404032,1780839038000,-300.0,0.00013,2]
[424404031,1780839038000,-300.0,0.00013,2]
[424404034,1780839038000,-485.73,0.00013083,2]
[424404021,1780839038000,-151.0,0.00012883,2]
[424404036,1780839038000,-12553.6824455,0.00013092,2]
[424404042,1780839038000,-7819.72072386,0.00013128,2]
[424404030,1780839038000,-528.03,0.00012987,2]
[424404046,1780839038000,-160.0,0.00013279,2]
[424404043,1780839038000,-500.0,0.00013234,2]
[424404040,1780839038000,-305.65688927,0.00013097,2]
[424404048,1780839038000,-2000.0,0.00013404,2]
[424404041,1780839038000,-500.0,0.00013123,2]
[424404038,1780839038000,-372.48078518,0.00013097,2]
[424404039,1780839038000,-371.68639575,0.00013097,2]
[424404037,1780839038000,-4018.14360044,0.00013097,2]
[424404047,1780839038000,-162.54,0.0001328,2]
[424404045,1780839038000,-369.71,0.0001326,2]
[424404112,1780839039000,-500.0,0.00013698,2]
[424404115,1780839039000,-500.0,0.00013698,2]
[424404121,1780839039000,-500.0,0.00013698,2]
[424404114,1780839039000,-500.0,0.00013698,2]
[424404123,1780839039000,-500.0,0.00013698,2]
[424404120,1780839039000,-450.4761853,0.00013698,2]
[424404116,1780839039000,-500.0,0.00013698,2]
[424404113,1780839039000,-500.0,0.00013698,2]
[424404119,1780839039000,-500.0,0.00013698,2]
[424404117,1780839039000,-500.0,0.00013698,2]
[424404118,1780839039000,-500.0,0.00013698,2]
[424404124,1780839039000,-500.0,0.00013698,2]
[424404122,1780839039000,-500.0,0.00013698,2]
[424404126,1780839039000,-500.0,0.00013698,2]
[424404125,1780839039000,-500.0,0.00013698,2]
[424404128,1780839039000,-1406.34,0.00013698,2]
[424404127,1780839039000,-500.0,0.00013698,2]
[424404134,1780839039000,-1406.34,0.00013698,2]
[424404136,1780839039000,-1406.34,0.00013698,2]
[424404135,1780839039000,-1406.34,0.00013698,2]
[424404132,1780839039000,-1406.34,0.00013698,2]
[424404130,1780839039000,-1406.34,0.00013698,2]
[424404133,1780839039000,-1406.34,0.00013698,2]
[424404131,1780839039000,-1406.34,0.00013698,2]
[424404139,1780839039000,-1406.34,0.00013698,2]
[424404138,1780839039000,-1406.34,0.00013698,2]
[424404137,1780839039000,-1406.34,0.00013698,2]
[424404111,1780839039000,-500.0,0.00013698,2]
[424404129,1780839039000,-1406.34,0.00013698,2]
[424404102,1780839039000,-500.0,0.00013698,2]
[424404085,1780839039000,-500.0,0.00013698,2]
[424404107,1780839039000,-500.0,0.00013698,2]
[424404148,1780839039000,-500.0,0.00013698,2]
[424404080,1780839039000,-500.0,0.00013698,2]
[424404081,1780839039000,-500.0,0.00013698,2]
[424404084,1780839039000,-500.0,0.00013698,2]
[424404082,1780839039000,-500.0,0.00013698,2]
[424404083,1780839039000,-500.0,0.00013698,2]
[424404086,1780839039000,-500.0,0.00013698,2]
[424404088,1780839039000,-500.0,0.00013698,2]
[424404097,1780839039000,-500.0,0.00013698,2]
[424404098,1780839039000,-500.0,0.00013698,2]
[424404089,1780839039000,-500.0,0.00013698,2]
[424404091,1780839039000,-500.0,0.00013698,2]
[424404087,1780839039000,-500.0,0.00013698,2]
[424404104,1780839039000,-567.34991975,0.00013698,2]
[424404090,1780839039000,-500.0,0.00013698,2]
[424404093,1780839039000,-500.0,0.00013698,2]
[424404092,1780839039000,-500.0,0.00013698,2]
[424404096,1780839039000,-500.0,0.00013698,2]
[424404095,1780839039000,-395.15,0.00013698,2]
[424404100,1780839039000,-500.0,0.00013698,2]
[424404108,1780839039000,-500.0,0.00013698,2]
[424404109,1780839039000,-500.0,0.00013698,2]
[424404110,1780839039000,-500.0,0.00013698,2]
[424404101,1780839039000,-500.0,0.00013698,2]
[424404099,1780839039000,-500.0,0.00013698,2]
[424404105,1780839039000,-525.11763864,0.00013698,2]
[424404103,1780839039000,-500.0,0.00013698,2]
[424404106,1780839039000,-500.0,0.00013698,2]
[424404094,1780839039000,-500.0,0.00013698,2]
[424404149,1780839039000,-456.53966443,0.00013698,2]
[424404186,1780839039000,-2500.0,0.00013699,2]
[424404141,1780839039000,-500.45399039,0.00013698,2]
[424404176,1780839039000,-500.0,0.00013698,2]
[424404178,1780839039000,-500.0,0.00013698,2]
[424404177,1780839039000,-500.0,0.00013698,2]
[424404179,1780839039000,-500.0,0.00013698,2]
[424404188,1780839039000,-1096.31,0.00013699,2]
[424404182,1780839039000,-500.0,0.00013698,2]
[424404180,1780839039000,-500.0,0.00013698,2]
[424404185,1780839039000,-500.0,0.00013698,2]
[424404187,1780839039000,-200.0,0.00013699,2]
[424404183,1780839039000,-500.0,0.00013698,2]
[424404181,1780839039000,-500.0,0.00013698,2]
[424404184,1780839039000,-500.0,0.00013698,2]
[424404189,1780839039000,-166.66,0.00013699,2]
[424404173,1780839039000,-500.0,0.00013698,2]
[424404199,1780839039000,-166.66,0.00013836,2]
[424404197,1780839039000,-2724.72836264,0.00013793,2]
[424404190,1780839039000,-312.72,0.00013699,2]
[424404198,1780839039000,-34285.28425035,0.00013797,2]
[424404192,1780839039000,-1092.11,0.000137,2]
[424404140,1780839039000,-500.43121743,0.00013698,2]
[424404194,1780839039000,-500.0,0.00013782,2]
[424404191,1780839039000,-163.61,0.000137,2]
[424404200,1780839039000,-150.0,0.00013862,2]
[424404193,1780839039000,-150.0,0.00013769,2]
[424404201,1780839039000,-290.85,0.000139,2]
[424404204,1780839039000,-1381.56,0.000139,2]
[424404203,1780839039000,-668.9,0.000139,2]
[424404202,1780839039000,-2637.56,0.000139,2]
[424404195,1780839039000,-1746.34780933,0.00013793,2]
[424404174,1780839039000,-500.0,0.00013698,2]
[424404196,1780839039000,-1474.98887883,0.00013793,2]
[424404170,1780839039000,-500.0,0.00013698,2]
[424404171,1780839039000,-500.0,0.00013698,2]
[424404143,1780839039000,-500.0,0.00013698,2]
[424404144,1780839039000,-500.0,0.00013698,2]
[424404146,1780839039000,-500.0,0.00013698,2]
[424404147,1780839039000,-181.71,0.00013698,2]
[424404145,1780839039000,-500.0,0.00013698,2]
[424404150,1780839039000,-500.0,0.00013698,2]
[424404154,1780839039000,-500.0,0.00013698,2]
[424404153,1780839039000,-500.0,0.00013698,2]
[424404152,1780839039000,-500.0,0.00013698,2]
[424404151,1780839039000,-500.0,0.00013698,2]
[424404161,1780839039000,-457.12873569,0.00013698,2]
[424404162,1780839039000,-500.0,0.00013698,2]
[424404155,1780839039000,-500.0,0.00013698,2]
[424404142,1780839039000,-500.0,0.00013698,2]
[424404160,1780839039000,-500.0,0.00013698,2]
[424404172,1780839039000,-500.0,0.00013698,2]
[424404156,1780839039000,-500.0,0.00013698,2]
[424404169,1780839039000,-500.0,0.00013698,2]
[424404167,1780839039000,-500.0,0.00013698,2]
[424404168,1780839039000,-500.0,0.00013698,2]
[424404175,1780839039000,-500.0,0.00013698,2]
[424404166,1780839039000,-500.0,0.00013698,2]
[424404165,1780839039000,-500.0,0.00013698,2]
[424404163,1780839039000,-500.0,0.00013698,2]
[424404158,1780839039000,-228.84,0.00013698,2]
[424404159,1780839039000,-500.0,0.00013698,2]
[424404157,1780839039000,-500.0,0.00013698,2]
[424404164,1780839039000,-500.0,0.00013698,2]
[424404238,1780839040000,-158.0,0.000146,2]
[424404236,1780839040000,-150.0,0.00014518,2]
[424404233,1780839040000,-10000.0,0.00014484,2]
[424404226,1780839040000,-500.0,0.0001433,2]
[424404228,1780839040000,-403.55724785,0.00014333,2]
[424404229,1780839040000,-34285.28425035,0.00014349,2]
[424404230,1780839040000,-1285.19284002,0.00014349,2]
[424404231,1780839040000,-166.66,0.00014384,2]
[424404232,1780839040000,-150.0,0.00014424,2]
[424404241,1780839040000,-150.0,0.00014612,2]
[424404235,1780839040000,-6600.0,0.000145,5]
[424404240,1780839040000,-500.0,0.00014604,2]
[424404243,1780839040000,-1285.19284002,0.00014625,2]
[424404239,1780839040000,-1300.0,0.000146,5]
[424404242,1780839040000,-34285.28425035,0.00014624,2]
[424404248,1780839040000,-357.61043425,0.000147,3]
[424404247,1780839040000,-403.55724785,0.00014666,2]
[424404237,1780839040000,-1746.34780933,0.00014531,2]
[424404234,1780839040000,-150.0,0.00014487,2]
[424404227,1780839040000,-150.0,0.00014331,2]
[424404209,1780839040000,-150.0,0.00013987,2]
[424404219,1780839040000,-500.0,0.0001411,2]
[424404246,1780839040000,-278.14329309,0.00014637,2]
[424404205,1780839040000,-2446.23,0.000139,2]
[424404206,1780839040000,-5300.0,0.000139,5]
[424404212,1780839040000,-1800.0,0.00014,2]
[424404208,1780839040000,-166.66,0.00013973,2]
[424404211,1780839040000,-300.0,0.00014,2]
[424404207,1780839040000,-150.0,0.00013956,2]
[424404210,1780839040000,-403.55724785,0.00013999,2]
[424404214,1780839040000,-150.0,0.0001405,2]
[424404222,1780839040000,-1746.34780933,0.00014162,2]
[424404215,1780839040000,-500.0,0.00014056,2]
[424404223,1780839040000,-180.694366,0.00014202,2]
[424404225,1780839040000,-166.66,0.00014247,2]
[424404213,1780839040000,-250.0,0.00014,2]
[424404216,1780839040000,-282.230726,0.00014062,2]
[424404224,1780839040000,-150.0,0.00014237,2]
[424404221,1780839040000,-150.0,0.00014143,2]
[424404218,1780839040000,-34285.28425035,0.00014073,2]
[424404220,1780839040000,-166.66,0.0001411,2]
[424404217,1780839040000,-218.942625,0.00014062,2]
[424404245,1780839040000,-150.0,0.00014637,2]
[424404253,1780839040000,-1300.0,0.000148,5]
[424404244,1780839040000,-150.0,0.00014637,2]
[424404275,1780839040000,-500.0,0.00014999,2]
[424404278,1780839040000,-500.0,0.00014999,2]
[424404277,1780839040000,-500.0,0.00014999,2]
[424404279,1780839040000,-500.0,0.00014999,2]
[424404274,1780839040000,-500.0,0.00014999,2]
[424404282,1780839040000,-500.0,0.00014999,2]
[424404276,1780839040000,-500.0,0.00014999,2]
[424404280,1780839040000,-500.0,0.00014999,2]
[424404272,1780839040000,-250.0,0.00014999,2]
[424404284,1780839040000,-500.0,0.00014999,2]
[424404283,1780839040000,-500.0,0.00014999,2]
[424404287,1780839040000,-500.0,0.00014999,2]
[424404285,1780839040000,-500.0,0.00014999,2]
[424404289,1780839040000,-500.0,0.00014999,2]
[424404290,1780839040000,-500.0,0.00014999,2]
[424404291,1780839040000,-500.0,0.00014999,2]
[424404292,1780839040000,-500.0,0.00014999,2]
[424404294,1780839040000,-500.0,0.00014999,2]
[424404286,1780839040000,-500.0,0.00014999,2]
[424404273,1780839040000,-1500.0,0.00014999,2]
[424404249,1780839040000,-1300.0,0.000147,5]
[424404271,1780839040000,-151.0,0.00014997,2]
[424404270,1780839040000,-151.0,0.00014997,2]
[424404250,1780839040000,-433.0,0.00014703,2]
[424404251,1780839040000,-150.0,0.00014705,2]
[424404257,1780839040000,-158.0,0.000149,2]
[424404252,1780839040000,-150.0,0.00014799,2]
[424404256,1780839040000,-1746.34780933,0.000149,2]
[424404293,1780839040000,-500.0,0.00014999,2]
[424404255,1780839040000,-2000.0,0.00014894,2]
[424404259,1780839040000,-1300.0,0.000149,5]
[424404254,1780839040000,-150.0,0.00014893,2]
[424404258,1780839040000,-1285.19284002,0.000149,2]
[424404261,1780839040000,-1474.98887883,0.000149,2]
[424404267,1780839040000,-150.00000012,0.00014986,2]
[424404268,1780839040000,-2043.10526872,0.0001499,2]
[424404266,1780839040000,-256.65450087,0.00014986,2]
[424404269,1780839040000,-2043.10526872,0.0001499,2]
[424404263,1780839040000,-1500.0,0.00014918,2]
[424404262,1780839040000,-169.1846961,0.000149,2]
[424404260,1780839040000,-34285.28425035,0.000149,2]
[424404264,1780839040000,-158.73968764,0.00014986,2]
[424404303,1780839041000,-500.0,0.00014999,2]
[424404314,1780839041000,-500.0,0.00014999,2]
[424404315,1780839041000,-500.0,0.00014999,2]
[424404311,1780839041000,-500.0,0.00014999,2]
[424404310,1780839041000,-500.0,0.00014999,2]
[424404312,1780839041000,-500.0,0.00014999,2]
[424404313,1780839041000,-500.0,0.00014999,2]
[424404309,1780839041000,-500.0,0.00014999,2]
[424404308,1780839041000,-500.0,0.00014999,2]
[424404306,1780839041000,-500.0,0.00014999,2]
[424404295,1780839041000,-500.0,0.00014999,2]
[424404307,1780839041000,-500.0,0.00014999,2]
[424404304,1780839041000,-500.0,0.00014999,2]
[424404301,1780839041000,-500.0,0.00014999,2]
[424404300,1780839041000,-500.0,0.00014999,2]
[424404298,1780839041000,-500.0,0.00014999,2]
[424404299,1780839041000,-500.0,0.00014999,2]
[424404296,1780839041000,-500.0,0.00014999,2]
[424404297,1780839041000,-500.0,0.00014999,2]
[424404316,1780839041000,-500.0,0.00014999,2]
[424404305,1780839041000,-500.0,0.00014999,2]
[424404317,1780839041000,-500.0,0.00014999,2]
[424404302,1780839041000,-500.0,0.00014999,2]
[424404320,1780839041000,-500.0,0.00014999,2]
[424404341,1780839041000,-751417.00211797,0.00015,2]
[424404339,1780839041000,-8099.62175,0.00015,2]
[424404337,1780839041000,-2080.83702791,0.00015,2]
[424404338,1780839041000,-1988.0,0.00015,3]
[424404335,1780839041000,-500.0,0.00014999,2]
[424404334,1780839041000,-500.0,0.00014999,2]
[424404333,1780839041000,-500.0,0.00014999,2]
[424404340,1780839041000,-347.76,0.00015,2]
[424404331,1780839041000,-500.0,0.00014999,2]
[424404330,1780839041000,-500.0,0.00014999,2]
[424404336,1780839041000,-17988049.12080255,0.00015,2]
[424404329,1780839041000,-500.0,0.00014999,2]
[424404332,1780839041000,-384.31005108,0.00014999,2]
[424404319,1780839041000,-500.0,0.00014999,2]
[424404321,1780839041000,-500.0,0.00014999,2]
[424404322,1780839041000,-500.0,0.00014999,2]
[424404324,1780839041000,-500.0,0.00014999,2]
[424404318,1780839041000,-500.0,0.00014999,2]
[424404323,1780839041000,-500.0,0.00014999,2]
[424404325,1780839041000,-500.0,0.00014999,2]
[424404328,1780839041000,-500.0,0.00014999,2]
[424404326,1780839041000,-500.0,0.00014999,2]
[424404327,1780839041000,-500.0,0.00014999,2]
[424404345,1780839043000,-2062.99,0.00015,2]
[424404346,1780839043000,-930.5458491,0.00015,2]
[424404348,1780839043000,-1552.63307784,0.00012181,2]
[424404347,1780839043000,-2428.11494746,0.00012181,2]
[424404349,1780839043000,-105.51692216,0.00013698,2]
[424404351,1780839043000,-500.0,0.00013698,2]
[424404355,1780839043000,-126.62844728,0.00013698,2]
[424404353,1780839043000,-500.0,0.00013698,2]
[424404354,1780839043000,-500.0,0.00013698,2]
[424404352,1780839043000,-500.0,0.00013698,2]
[424404350,1780839043000,-394.48307784,0.00013698,2]
[424404357,1780839047000,-980.38208397,0.00013482,2]
[424404358,1780839047000,-1695.90779472,0.00013482,2]
[424404383,1780839180000,475.88421708,0.00027462,120]
[424404384,1780839203000,500.0,0.00025026,120]
[424404386,1780839204000,500.0,0.00028249,120]
[424404385,1780839204000,500.0,0.00026638,120]
[424404387,1780839305000,167.0,0.00027239,120]
[424404388,1780839306000,167.0,0.00028601,120]
[424404389,1780839308000,167.0,0.00030031,120]
[424404390,1780839329000,180.0,0.00027742,120]
[424404392,1780839613000,239.0,0.00026261,120]
[424404394,1780839616000,239.0,0.00028953,120]
[424404393,1780839616000,239.0,0.00027574,120]
[424404395,1780839630000,179.0,0.00025072,120]
[424404396,1780839632000,179.0,0.00026325,120]
[424404397,1780839633000,179.0,0.00027642,120]
[424404398,1780839635000,179.0,0.00029024,120]
[424404399,1780839778000,1000.0,0.00030137,120]
[424404400,1780839803000,500.0,0.0002629,120]
[424404401,1780839804000,500.0,0.0002839,120]
[424404403,1780839859000,150.0,0.00012609,120]
[424404404,1780839911000,171.0,0.00028162,120]
[424404405,1780839915000,171.0,0.0002957,120]
[424404437,1780840083000,3001.0,0.0003,120]
[424404438,1780840096000,1000.0,0.0003,120]
[424404439,1780840141000,2000.0,0.00030136,120]
[424404484,1780840202000,1452.02,0.00030137,120]
[424404485,1780840204000,172.0,0.0002932,120]
[424404486,1780840212000,278.87,0.0003013,120]
[424404517,1780840231000,-1515.2,0.00012625,2]
[424404509,1780840231000,-252.80804943,0.00012284,2]
[424404510,1780840231000,-293.9234666,0.00012284,2]
[424404511,1780840231000,-546.73151603,0.00012408,2]
[424404513,1780840231000,-546.73151603,0.00012533,2]
[424404514,1780840231000,-834.91383092,0.00012555,2]
[424404515,1780840231000,-165.08616908,0.00012555,2]
[424404516,1780840231000,-150.0,0.00012609,2]
[424404518,1780840231000,-546.73151603,0.00012657,2]
[424404512,1780840231000,-201.77862393,0.00012519,2]
[424404521,1780840231000,-546.73151603,0.00012906,2]
[424404520,1780840231000,-546.73151603,0.00012782,2]
[424404524,1780840231000,-546.73151603,0.0001328,2]
[424404519,1780840231000,-1531.41,0.00012708,2]
[424404522,1780840231000,-546.73151603,0.00013031,2]
[424404526,1780840231000,-8599.070708,0.0001349,9]
[424404525,1780840231000,-546.73151603,0.00013404,2]
[424404523,1780840231000,-546.73151603,0.00013155,2]
[424404527,1780840231000,-5007.1277,0.00013499,2]
[424404528,1780840231000,-2500.0,0.00013499,2]